[Event "*** Titled Tuesday Blitz"]
[Site "Chess.com"]
[Date "2021.03.16"]
[Round "10"]
[White "rynos0411"]
[Black "vovachesss"]
[Result "0-1"]
[WhiteElo "2509"]
[BlackElo "2748"]
[TimeControl "180+1"]
[EndTime "11:53:57 PDT"]
[Termination "vovachesss won on time"]

1. e4 {[%clk 0:02:57.6]} 1... e5 {[%clk 0:02:58.2]} 2. Nf3 {[%clk 0:02:56.3]}
2... d5 {[%clk 0:02:58.7]} 3. exd5 {[%clk 0:02:56]} 3... e4 {[%clk 0:02:58.8]}
4. Qe2 {[%clk 0:02:56]} 4... Nf6 {[%clk 0:02:59.4]} 5. d3 {[%clk 0:02:56.3]}
5... Qxd5 {[%clk 0:02:59.4]} 6. Nbd2 {[%clk 0:02:56.8]} 6... Nc6 {[%clk
0:02:59.1]} 7. dxe4 {[%clk 0:02:56.8]} 7... Qe6 {[%clk 0:02:59.5]} 8. Qc4 {[%clk
0:02:51.4]} 8... Qd7 {[%clk 0:02:59.7]} 9. Bd3 {[%clk 0:02:45]} 9... Bd6 {[%clk
0:03:00]} 10. Nb3 {[%clk 0:02:41.5]} 10... O-O {[%clk 0:02:59.9]} 11. O-O {[%clk
0:02:40.2]} 11... Ng4 {[%clk 0:02:59.8]} 12. Be3 {[%clk 0:02:21.2]} 12... Qe7
{[%clk 0:02:43.4]} 13. Bc5 {[%clk 0:02:09.6]} 13... Nxh2 {[%clk 0:01:33.6]} 14.
Nxh2 {[%clk 0:01:07.6]} 14... Bxh2+ {[%clk 0:01:32.7]} 15. Kxh2 {[%clk
0:01:07.2]} 15... Qh4+ {[%clk 0:01:33.2]} 16. Kg1 {[%clk 0:01:03]} 16... Ne5
{[%clk 0:01:34.1]} 17. Qd4 {[%clk 0:00:16.7]} 17... Nf3+ {[%clk 0:00:25]} 18.
gxf3 {[%clk 0:00:08.7]} 18... Qg5+ {[%clk 0:00:17.1]} 19. Kh2 {[%clk 0:00:04.7]}
19... Qh5+ {[%clk 0:00:16.1]} 20. Kg1 {[%clk 0:00:03.8]} 20... Bh3 {[%clk
0:00:12.7]} 0-1

[Event "*** Titled Tuesday Blitz"]
[Site "Chess.com"]
[Date "2021.03.16"]
[Round "10"]
[White "karinachess1"]
[Black "politeplayer"]
[Result "1-0"]
[WhiteElo "2516"]
[BlackElo "2266"]
[TimeControl "180+1"]
[EndTime "11:54:08 PDT"]
[Termination "karinachess1 won on time"]

1. e4 {[%clk 0:03:00.9]} 1... c5 {[%clk 0:02:57]} 2. d4 {[%clk 0:03:00.5]} 2...
cxd4 {[%clk 0:02:54.8]} 3. c3 {[%clk 0:03:00.9]} 3... Nf6 {[%clk 0:02:52.1]} 4.
e5 {[%clk 0:02:59.4]} 4... Nd5 {[%clk 0:02:52.1]} 5. Qxd4 {[%clk 0:03:00]} 5...
e6 {[%clk 0:02:50]} 6. Bc4 {[%clk 0:02:51.6]} 6... Nc6 {[%clk 0:02:49.4]} 7. Qe4
{[%clk 0:02:51.3]} 7... f5 {[%clk 0:02:47.3]} 8. exf6 {[%clk 0:02:48.7]} 8...
Nxf6 {[%clk 0:02:41.7]} 9. Qe2 {[%clk 0:02:48.7]} 9... d5 {[%clk 0:02:35.6]} 10.
Bd3 {[%clk 0:02:33.8]} 10... e5 {[%clk 0:02:33.1]} 11. Bg5 {[%clk 0:02:05.5]}
11... Bd6 {[%clk 0:02:05.7]} 12. Nd2 {[%clk 0:01:45.7]} 12... O-O {[%clk
0:02:02.4]} 13. O-O-O {[%clk 0:01:39.3]} 13... Qa5 {[%clk 0:01:32.1]} 14. Kb1
{[%clk 0:01:36.8]} 14... e4 {[%clk 0:01:30.8]} 15. Bc2 {[%clk 0:01:33]} 15... d4
{[%clk 0:01:29.7]} 16. Qc4+ {[%clk 0:01:31.5]} 16... Kh8 {[%clk 0:01:26.9]} 17.
Bxf6 {[%clk 0:01:31.7]} 17... Rxf6 {[%clk 0:01:18.7]} 18. Nxe4 {[%clk
0:01:30.3]} 18... Rh6 {[%clk 0:00:33.2]} 19. Nxd6 {[%clk 0:01:19.5]} 19... Rxd6
{[%clk 0:00:31.3]} 20. Re1 {[%clk 0:01:16.5]} 20... Bd7 {[%clk 0:00:26.3]} 21.
Nf3 {[%clk 0:01:11.6]} 21... d3 {[%clk 0:00:22.9]} 22. Bb3 {[%clk 0:01:00.2]}
22... d2 {[%clk 0:00:22.9]} 23. Rd1 {[%clk 0:00:55.2]} 23... Bf5+ {[%clk
0:00:20.8]} 24. Ka1 {[%clk 0:00:48.7]} 24... Be6 {[%clk 0:00:20.5]} 25. Qa4
{[%clk 0:00:41.5]} 25... Bxb3 {[%clk 0:00:16.6]} 26. Qxb3 {[%clk 0:00:41.6]}
26... Rad8 {[%clk 0:00:12.1]} 27. h4 {[%clk 0:00:41.7]} 27... Ne7 {[%clk
0:00:10.9]} 28. Ng5 {[%clk 0:00:40]} 28... Rf6 {[%clk 0:00:05.8]} 29. Nf7+
{[%clk 0:00:36.9]} 29... Rxf7 {[%clk 0:00:05.7]} 30. Qxf7 {[%clk 0:00:37.8]}
30... Nd5 {[%clk 0:00:04.2]} 31. Rxd2 {[%clk 0:00:34.5]} 31... h6 {[%clk
0:00:02]} 32. Rhd1 {[%clk 0:00:33.8]} 1-0

[Event "*** Titled Tuesday Blitz"]
[Site "Chess.com"]
[Date "2021.03.16"]
[Round "10"]
[White "Buffy7"]
[Black "ckgchess"]
[Result "1-0"]
[WhiteElo "2642"]
[BlackElo "2749"]
[TimeControl "180+1"]
[EndTime "11:54:09 PDT"]
[Termination "Buffy7 won on time"]

1. e4 {[%clk 0:03:00.9]} 1... g6 {[%clk 0:02:58.5]} 2. d4 {[%clk 0:03:00.7]}
2... Bg7 {[%clk 0:02:59.1]} 3. Nf3 {[%clk 0:03:01.5]} 3... c5 {[%clk 0:02:59.4]}
4. dxc5 {[%clk 0:03:01.4]} 4... Na6 {[%clk 0:02:58.7]} 5. Bxa6 {[%clk
0:02:56.6]} 5... Qa5+ {[%clk 0:02:58.8]} 6. c3 {[%clk 0:02:54.8]} 6... Qxa6
{[%clk 0:02:58.7]} 7. Be3 {[%clk 0:02:54.1]} 7... Nf6 {[%clk 0:02:58.5]} 8. e5
{[%clk 0:02:49.7]} 8... Ng4 {[%clk 0:02:57.7]} 9. Bd4 {[%clk 0:02:50.2]} 9...
O-O {[%clk 0:02:57.1]} 10. h3 {[%clk 0:02:45.3]} 10... Nh6 {[%clk 0:02:57.2]}
11. Qe2 {[%clk 0:02:45.8]} 11... Qxe2+ {[%clk 0:02:52.7]} 12. Kxe2 {[%clk
0:02:46.7]} 12... Nf5 {[%clk 0:02:46.5]} 13. Rd1 {[%clk 0:02:40.5]} 13... b6
{[%clk 0:02:32.2]} 14. cxb6 {[%clk 0:02:38.9]} 14... Ba6+ {[%clk 0:02:30.2]} 15.
Ke1 {[%clk 0:02:37.5]} 15... axb6 {[%clk 0:02:26.5]} 16. Na3 {[%clk 0:02:32.9]}
16... d6 {[%clk 0:02:19.8]} 17. exd6 {[%clk 0:02:16.6]} 17... e5 {[%clk
0:02:20.7]} 18. Nxe5 {[%clk 0:01:46.9]} 18... Rfe8 {[%clk 0:01:37.9]} 19. d7
{[%clk 0:01:43]} 19... Re7 {[%clk 0:01:36.6]} 20. f4 {[%clk 0:01:43]} 20... Nxd4
{[%clk 0:00:34.8]} 21. Rxd4 {[%clk 0:01:43.9]} 21... Rd8 {[%clk 0:00:35]} 22.
Kf2 {[%clk 0:01:29]} 22... Bxe5 {[%clk 0:00:31.4]} 23. fxe5 {[%clk 0:01:29.9]}
23... Rdxd7 {[%clk 0:00:32.3]} 24. Rad1 {[%clk 0:01:26.9]} 24... Ra7 {[%clk
0:00:28.3]} 25. Rd6 {[%clk 0:01:20.7]} 25... Rxe5 {[%clk 0:00:26.6]} 26. R1d2
{[%clk 0:01:21.3]} 26... b5 {[%clk 0:00:21.2]} 27. Nc2 {[%clk 0:01:19.8]} 27...
Kg7 {[%clk 0:00:18.3]} 28. Nb4 {[%clk 0:01:18.5]} 28... Bc8 {[%clk 0:00:13.5]}
29. g4 {[%clk 0:01:19]} 29... Rc7 {[%clk 0:00:07.3]} 30. R6d5 {[%clk 0:01:16.5]}
30... Re4 {[%clk 0:00:06.6]} 31. R2d4 {[%clk 0:01:06.9]} 31... Rxd4 {[%clk
0:00:06.3]} 32. Rxd4 {[%clk 0:01:07.8]} 32... h5 {[%clk 0:00:04.1]} 33. Kf3
{[%clk 0:00:57.4]} 33... hxg4+ {[%clk 0:00:04.1]} 34. hxg4 {[%clk 0:00:58.3]}
34... Re7 {[%clk 0:00:04]} 35. Nd3 {[%clk 0:00:50.5]} 35... Be6 {[%clk
0:00:01.5]} 36. a3 {[%clk 0:00:49.9]} 36... Bc4 {[%clk 0:00:01.2]} 37. Nf4
{[%clk 0:00:44.5]} 1-0

[Event "*** Titled Tuesday Blitz"]
[Site "Chess.com"]
[Date "2021.03.16"]
[Round "10"]
[White "ChelsieMonica"]
[Black "MuhittinBuker"]
[Result "1-0"]
[WhiteElo "2349"]
[BlackElo "2191"]
[TimeControl "180+1"]
[EndTime "11:54:12 PDT"]
[Termination "ChelsieMonica won by resignation"]

1. c4 {[%clk 0:02:51.8]} 1... Nf6 {[%clk 0:02:58.9]} 2. Nf3 {[%clk 0:02:48.4]}
2... e6 {[%clk 0:02:59.1]} 3. g3 {[%clk 0:02:47]} 3... d5 {[%clk 0:02:58.5]} 4.
cxd5 {[%clk 0:02:47.9]} 4... exd5 {[%clk 0:02:58.1]} 5. Bg2 {[%clk 0:02:48.8]}
5... c6 {[%clk 0:02:58.4]} 6. O-O {[%clk 0:02:49.7]} 6... Be7 {[%clk 0:02:58.5]}
7. d4 {[%clk 0:02:48.1]} 7... O-O {[%clk 0:02:59.4]} 8. Nc3 {[%clk 0:02:36.5]}
8... h6 {[%clk 0:02:58.3]} 9. h3 {[%clk 0:02:37.4]} 9... Bf5 {[%clk 0:02:57.6]}
10. Qb3 {[%clk 0:02:37.3]} 10... Qb6 {[%clk 0:02:57.1]} 11. Qxb6 {[%clk
0:02:19.8]} 11... axb6 {[%clk 0:02:56.7]} 12. g4 {[%clk 0:02:19.4]} 12... Bh7
{[%clk 0:02:55.3]} 13. b3 {[%clk 0:02:12]} 13... b5 {[%clk 0:02:55.2]} 14. Bf4
{[%clk 0:02:07.6]} 14... Nbd7 {[%clk 0:02:54.2]} 15. Ne5 {[%clk 0:01:57.6]}
15... Nxe5 {[%clk 0:02:52.7]} 16. Bxe5 {[%clk 0:01:55.2]} 16... Nd7 {[%clk
0:02:52.8]} 17. Bf4 {[%clk 0:01:45.5]} 17... Ba3 {[%clk 0:02:51.4]} 18. Bc1
{[%clk 0:01:42.3]} 18... Ra7 {[%clk 0:02:49.3]} 19. e4 {[%clk 0:01:28.6]} 19...
Bxc1 {[%clk 0:02:44.9]} 20. Raxc1 {[%clk 0:01:26.5]} 20... b4 {[%clk 0:02:43.7]}
21. Na4 {[%clk 0:01:13.1]} 21... dxe4 {[%clk 0:02:40]} 22. Rfe1 {[%clk
0:01:11.7]} 22... Re8 {[%clk 0:02:39]} 23. f4 {[%clk 0:00:56.6]} 23... f5 {[%clk
0:02:35.1]} 24. Bf1 {[%clk 0:00:52.7]} 24... Kf8 {[%clk 0:02:33.3]} 25. Re2
{[%clk 0:00:48.1]} 25... Nf6 {[%clk 0:02:32.6]} 26. g5 {[%clk 0:00:40.3]} 26...
Nh5 {[%clk 0:02:27.9]} 27. gxh6 {[%clk 0:00:36]} 27... Nxf4 {[%clk 0:02:25.6]}
28. hxg7+ {[%clk 0:00:33.7]} 28... Kxg7 {[%clk 0:02:23.7]} 29. Rf2 {[%clk
0:00:34.2]} 29... Nd3 {[%clk 0:02:20.8]} 30. Bxd3 {[%clk 0:00:32.8]} 30... exd3
{[%clk 0:02:20.7]} 31. Rg2+ {[%clk 0:00:29.1]} 31... Kf6 {[%clk 0:02:20.2]} 32.
Nc5 {[%clk 0:00:27.8]} 32... f4 {[%clk 0:02:11.6]} 33. Rf1 {[%clk 0:00:26.3]}
33... Re2 {[%clk 0:01:59.5]} 34. Rxf4+ {[%clk 0:00:26.2]} 34... Bf5 {[%clk
0:01:54.9]} 35. Nxd3 {[%clk 0:00:23.5]} 35... Rxg2+ {[%clk 0:01:52.6]} 36. Kxg2
{[%clk 0:00:24.4]} 36... Rxa2+ {[%clk 0:01:51.2]} 37. Kg3 {[%clk 0:00:24.6]}
37... Kg5 {[%clk 0:01:48.2]} 38. h4+ {[%clk 0:00:24.4]} 38... Kg6 {[%clk
0:01:47.2]} 39. Ne5+ {[%clk 0:00:24.3]} 39... Kf6 {[%clk 0:01:46]} 40. Nd7+
{[%clk 0:00:24.8]} 40... Ke6 {[%clk 0:01:28]} 41. Nc5+ {[%clk 0:00:24.4]} 41...
Kf6 {[%clk 0:01:27.9]} 42. Nxb7 {[%clk 0:00:24.3]} 42... Rb2 {[%clk 0:01:27.1]}
43. Nc5 {[%clk 0:00:24]} 43... Kg6 {[%clk 0:01:25.3]} 44. h5+ {[%clk 0:00:23.9]}
44... Kg5 {[%clk 0:01:25.5]} 45. h6 {[%clk 0:00:23.7]} 45... Bh7 {[%clk
0:01:22.1]} 46. Ne6+ {[%clk 0:00:19.9]} 46... Kxh6 {[%clk 0:01:22]} 47. Rh4+
{[%clk 0:00:20.2]} 47... Kg6 {[%clk 0:01:18.7]} 48. Nf8+ {[%clk 0:00:20.7]}
48... Kg7 {[%clk 0:01:18.1]} 49. Nxh7 {[%clk 0:00:20.5]} 49... Rxb3+ {[%clk
0:01:18.2]} 50. Kf4 {[%clk 0:00:21.1]} 50... Rc3 {[%clk 0:01:08.7]} 51. Ng5
{[%clk 0:00:20.3]} 51... b3 {[%clk 0:01:08]} 52. Ne4 {[%clk 0:00:20.6]} 52... b2
{[%clk 0:01:07]} 53. Nxc3 {[%clk 0:00:20.3]} 1-0

[Event "*** Titled Tuesday Blitz"]
[Site "Chess.com"]
[Date "2021.03.16"]
[Round "10"]
[White "aljado"]
[Black "DinaBelenkaya"]
[Result "1-0"]
[WhiteElo "2173"]
[BlackElo "2355"]
[TimeControl "180+1"]
[EndTime "11:54:29 PDT"]
[Termination "aljado won on time"]

1. e4 {[%clk 0:03:00.9]} 1... d5 {[%clk 0:02:58.6]} 2. exd5 {[%clk 0:02:58.4]}
2... Qxd5 {[%clk 0:02:58.7]} 3. d4 {[%clk 0:02:57.6]} 3... Nc6 {[%clk
0:02:56.8]} 4. Be3 {[%clk 0:02:52]} 4... e5 {[%clk 0:02:40.2]} 5. c4 {[%clk
0:02:46.8]} 5... Qa5+ {[%clk 0:02:35.1]} 6. Bd2 {[%clk 0:02:45.7]} 6... Bb4
{[%clk 0:02:31.6]} 7. d5 {[%clk 0:02:44.3]} 7... Nd4 {[%clk 0:02:28.7]} 8. Nc3
{[%clk 0:02:41.3]} 8... Bf5 {[%clk 0:02:19.2]} 9. Rc1 {[%clk 0:02:27.3]} 9...
Qb6 {[%clk 0:01:22.4]} 10. Nf3 {[%clk 0:02:07.5]} 10... O-O-O {[%clk 0:01:15.5]}
11. a3 {[%clk 0:01:48.4]} 11... Bc5 {[%clk 0:01:10.5]} 12. b4 {[%clk 0:01:43.4]}
12... Nc2+ {[%clk 0:00:54.8]} 13. Rxc2 {[%clk 0:01:41.6]} 13... Bxf2+ {[%clk
0:00:55.7]} 14. Ke2 {[%clk 0:01:40.9]} 14... e4 {[%clk 0:00:56.6]} 15. c5 {[%clk
0:01:32.3]} 15... exf3+ {[%clk 0:00:51.4]} 16. Kxf2 {[%clk 0:01:31.8]} 16... Qg6
{[%clk 0:00:52.2]} 17. Rc1 {[%clk 0:01:14]} 17... Nf6 {[%clk 0:00:50.7]} 18.
gxf3 {[%clk 0:01:10.7]} 18... Nxd5 {[%clk 0:00:50]} 19. Nxd5 {[%clk 0:01:06.2]}
19... Rxd5 {[%clk 0:00:50.9]} 20. Qe2 {[%clk 0:01:04.8]} 20... Qf6 {[%clk
0:00:35.6]} 21. Bg2 {[%clk 0:00:50.9]} 21... Qh4+ {[%clk 0:00:34.9]} 22. Kg1
{[%clk 0:00:47.5]} 22... Rhd8 {[%clk 0:00:30]} 23. Be1 {[%clk 0:00:42.9]} 23...
Qg5 {[%clk 0:00:30.3]} 24. Ra1 {[%clk 0:00:28.6]} 24... Rd3 {[%clk 0:00:14.6]}
25. h4 {[%clk 0:00:25.5]} 25... Qf4 {[%clk 0:00:13.2]} 26. Ra2 {[%clk 0:00:19]}
26... Rd1 {[%clk 0:00:11.9]} 27. Kf2 {[%clk 0:00:17]} 27... Rc1 {[%clk
0:00:06.6]} 28. Rd2 {[%clk 0:00:14.7]} 28... Rxd2 {[%clk 0:00:02.7]} 29. Qxd2
{[%clk 0:00:11.6]} 29... Qc4 {[%clk 0:00:02.5]} 30. Kg1 {[%clk 0:00:07.7]} 30...
Rc2 {[%clk 0:00:03.4]} 31. Qe3 {[%clk 0:00:05.7]} 1-0

[Event "*** Titled Tuesday Blitz"]
[Site "Chess.com"]
[Date "2021.03.16"]
[Round "10"]
[White "alexrustemov"]
[Black "SF-96"]
[Result "1-0"]
[WhiteElo "2770"]
[BlackElo "2595"]
[TimeControl "180+1"]
[EndTime "11:54:35 PDT"]
[Termination "alexrustemov won by resignation"]

1. d4 {[%clk 0:03:00.9]} 1... Nf6 {[%clk 0:03:00.1]} 2. c4 {[%clk 0:02:56.9]}
2... g6 {[%clk 0:03:00.2]} 3. g3 {[%clk 0:02:56.7]} 3... Bg7 {[%clk 0:02:59.8]}
4. Bg2 {[%clk 0:02:56.6]} 4... d5 {[%clk 0:03:00.5]} 5. cxd5 {[%clk 0:02:55.5]}
5... Nxd5 {[%clk 0:03:00.7]} 6. Nc3 {[%clk 0:02:55.2]} 6... Nb6 {[%clk
0:02:59.5]} 7. Nf3 {[%clk 0:02:55.1]} 7... O-O {[%clk 0:02:59.8]} 8. O-O {[%clk
0:02:54.9]} 8... Nc6 {[%clk 0:03:00.4]} 9. e3 {[%clk 0:02:54.2]} 9... Re8 {[%clk
0:03:00.1]} 10. Re1 {[%clk 0:02:53.1]} 10... e5 {[%clk 0:02:59.6]} 11. d5 {[%clk
0:02:52.2]} 11... Ne7 {[%clk 0:02:44.2]} 12. e4 {[%clk 0:02:50.8]} 12... Bg4
{[%clk 0:02:44.9]} 13. h3 {[%clk 0:02:47.5]} 13... Bxf3 {[%clk 0:02:44.8]} 14.
Qxf3 {[%clk 0:02:43.7]} 14... c6 {[%clk 0:02:41.4]} 15. Bg5 {[%clk 0:02:36.7]}
15... h6 {[%clk 0:02:25.6]} 16. Be3 {[%clk 0:02:17.6]} 16... cxd5 {[%clk
0:02:18.7]} 17. exd5 {[%clk 0:02:15.3]} 17... Nc4 {[%clk 0:02:15]} 18. d6 {[%clk
0:02:07.6]} 18... Nf5 {[%clk 0:01:46.5]} 19. Qxb7 {[%clk 0:01:36.1]} 19... Rb8
{[%clk 0:01:27.1]} 20. Qc7 {[%clk 0:01:26]} 20... Ncxe3 {[%clk 0:01:23.2]} 21.
fxe3 {[%clk 0:01:24.8]} 21... Rxb2 {[%clk 0:01:07.2]} 22. Rad1 {[%clk
0:01:19.4]} 22... Rc2 {[%clk 0:00:51.4]} 23. Qxd8 {[%clk 0:01:07.6]} 23... Rxd8
{[%clk 0:00:51.3]} 24. Ne4 {[%clk 0:01:08.1]} 24... Rxa2 {[%clk 0:00:41.1]} 25.
g4 {[%clk 0:01:03.7]} 25... Nh4 {[%clk 0:00:34.3]} 26. Bh1 {[%clk 0:01:03.7]}
26... f5 {[%clk 0:00:27.7]} 27. Nc5 {[%clk 0:00:58.6]} 27... e4 {[%clk
0:00:22.1]} 28. d7 {[%clk 0:00:55.2]} 28... Be5 {[%clk 0:00:11.8]} 29. Ne6
{[%clk 0:00:53.8]} 29... Bf6 {[%clk 0:00:04.6]} 30. Nxd8 {[%clk 0:00:51.4]}
30... Bxd8 {[%clk 0:00:05.5]} 31. gxf5 {[%clk 0:00:44.3]} 31... gxf5 {[%clk
0:00:06.4]} 32. Rd6 {[%clk 0:00:36.6]} 32... Kf7 {[%clk 0:00:02.9]} 33. Rxh6
{[%clk 0:00:34.5]} 33... Ng6 {[%clk 0:00:03.2]} 34. Rf1 {[%clk 0:00:29.3]} 34...
f4 {[%clk 0:00:01.2]} 35. Bxe4 {[%clk 0:00:28.5]} 35... Ne5 {[%clk 0:00:01.8]}
36. Rxf4+ {[%clk 0:00:27.5]} 36... Kg7 {[%clk 0:00:02.4]} 37. Rh7+ {[%clk
0:00:26]} 37... Kg8 {[%clk 0:00:02.9]} 38. Rf2 {[%clk 0:00:22.1]} 38... Bb6
{[%clk 0:00:02.8]} 1-0

[Event "*** Titled Tuesday Blitz"]
[Site "Chess.com"]
[Date "2021.03.16"]
[Round "10"]
[White "GMJustin"]
[Black "AttilaTurzo"]
[Result "0-1"]
[WhiteElo "2324"]
[BlackElo "2543"]
[TimeControl "180+1"]
[EndTime "11:54:37 PDT"]
[Termination "AttilaTurzo won on time"]

1. e4 {[%clk 0:03:00.1]} 1... c5 {[%clk 0:02:59.9]} 2. Nf3 {[%clk 0:02:59.4]}
2... Nc6 {[%clk 0:03:00.5]} 3. d4 {[%clk 0:02:56.8]} 3... cxd4 {[%clk
0:03:01.4]} 4. Nxd4 {[%clk 0:02:55.9]} 4... Nf6 {[%clk 0:03:02.1]} 5. Nc3 {[%clk
0:02:54.5]} 5... d6 {[%clk 0:03:02.8]} 6. Bg5 {[%clk 0:02:51.4]} 6... e6 {[%clk
0:03:03.1]} 7. Qd2 {[%clk 0:02:49.2]} 7... a6 {[%clk 0:03:03.7]} 8. O-O-O {[%clk
0:02:47.3]} 8... Bd7 {[%clk 0:03:04.3]} 9. f3 {[%clk 0:02:43.8]} 9... Nxd4
{[%clk 0:03:04.2]} 10. Qxd4 {[%clk 0:02:43.2]} 10... Be7 {[%clk 0:03:04.8]} 11.
Be3 {[%clk 0:02:39.3]} 11... O-O {[%clk 0:03:03.6]} 12. g4 {[%clk 0:02:31.7]}
12... Bc6 {[%clk 0:03:03.2]} 13. h4 {[%clk 0:02:24.8]} 13... b5 {[%clk
0:03:00.2]} 14. g5 {[%clk 0:02:13.6]} 14... Nd7 {[%clk 0:03:00]} 15. Qd2 {[%clk
0:02:07.1]} 15... b4 {[%clk 0:02:55.5]} 16. Ne2 {[%clk 0:02:05.6]} 16... d5
{[%clk 0:02:56]} 17. Nd4 {[%clk 0:01:54.7]} 17... Bb7 {[%clk 0:02:56.3]} 18. h5
{[%clk 0:01:43]} 18... dxe4 {[%clk 0:02:55.5]} 19. g6 {[%clk 0:01:42.4]} 19...
Nc5 {[%clk 0:02:22]} 20. h6 {[%clk 0:01:26.2]} 20... fxg6 {[%clk 0:02:14.4]} 21.
hxg7 {[%clk 0:01:24.1]} 21... Rf7 {[%clk 0:02:13.1]} 22. Qh2 {[%clk 0:00:25.4]}
22... Rxg7 {[%clk 0:02:06.2]} 23. Nxe6 {[%clk 0:00:23]} 23... Nxe6 {[%clk
0:02:03.5]} 24. Rxd8+ {[%clk 0:00:21]} 24... Rxd8 {[%clk 0:02:04.4]} 25. Bc4
{[%clk 0:00:19]} 25... Bd5 {[%clk 0:01:58]} 26. Bxd5 {[%clk 0:00:17.5]} 26...
Rxd5 {[%clk 0:01:58.9]} 27. fxe4 {[%clk 0:00:16.7]} 27... Rd8 {[%clk 0:01:57.1]}
28. Qe5 {[%clk 0:00:14.9]} 28... Rd6 {[%clk 0:01:03.2]} 29. Rd1 {[%clk
0:00:14.1]} 29... Rc6 {[%clk 0:00:49.3]} 30. Qd5 {[%clk 0:00:13]} 30... Rd6
{[%clk 0:00:43]} 31. Qc4 {[%clk 0:00:08.3]} 31... Kf7 {[%clk 0:00:34]} 32. Rxd6
{[%clk 0:00:05.8]} 32... Bxd6 {[%clk 0:00:34.9]} 33. Qxa6 {[%clk 0:00:05.6]}
33... Be7 {[%clk 0:00:31.1]} 34. Kd2 {[%clk 0:00:04.8]} 34... Rg8 {[%clk
0:00:30.5]} 35. c3 {[%clk 0:00:03.9]} 35... Rd8+ {[%clk 0:00:27.7]} 36. Kc2
{[%clk 0:00:03.8]} 36... bxc3 {[%clk 0:00:26.6]} 37. Kxc3 {[%clk 0:00:03.1]}
37... Bf6+ {[%clk 0:00:23.1]} 38. Kc2 {[%clk 0:00:02.4]} 38... h5 {[%clk
0:00:20.5]} 39. Qf1 {[%clk 0:00:01.5]} 39... Kg7 {[%clk 0:00:18.8]} 40. Qf2
{[%clk 0:00:01.2]} 40... Rc8+ {[%clk 0:00:18]} 0-1

[Event "*** Titled Tuesday Blitz"]
[Site "Chess.com"]
[Date "2021.03.16"]
[Round "10"]
[White "1977Ivan"]
[Black "ChristopherYoo"]
[Result "0-1"]
[WhiteElo "2806"]
[BlackElo "2909"]
[TimeControl "180+1"]
[EndTime "11:54:38 PDT"]
[Termination "ChristopherYoo won on time"]

1. e4 {[%clk 0:03:00.9]} 1... c5 {[%clk 0:02:48.4]} 2. Nc3 {[%clk 0:02:59.9]}
2... Nc6 {[%clk 0:02:47.9]} 3. f4 {[%clk 0:02:59.1]} 3... d6 {[%clk 0:02:43.3]}
4. Nf3 {[%clk 0:02:58.6]} 4... g6 {[%clk 0:02:43.6]} 5. Bb5 {[%clk 0:02:53.2]}
5... Bd7 {[%clk 0:02:43.4]} 6. Bc4 {[%clk 0:02:52.5]} 6... Bg7 {[%clk 0:02:43]}
7. d3 {[%clk 0:02:41.5]} 7... e6 {[%clk 0:02:40.1]} 8. f5 {[%clk 0:02:41.2]}
8... exf5 {[%clk 0:02:39.2]} 9. O-O {[%clk 0:02:39.9]} 9... Nge7 {[%clk
0:02:36.9]} 10. Qe1 {[%clk 0:02:38.4]} 10... h6 {[%clk 0:02:19.2]} 11. Bf4
{[%clk 0:02:29.8]} 11... Ne5 {[%clk 0:02:16.5]} 12. exf5 {[%clk 0:02:19.4]}
12... Nxf3+ {[%clk 0:02:11.7]} 13. Rxf3 {[%clk 0:02:20.3]} 13... Bxf5 {[%clk
0:02:10.7]} 14. Qg3 {[%clk 0:02:06.8]} 14... d5 {[%clk 0:02:01.8]} 15. Bc7
{[%clk 0:02:02.9]} 15... Qd7 {[%clk 0:02:00.6]} 16. Bb5 {[%clk 0:02:02.1]} 16...
Nc6 {[%clk 0:02:00.8]} 17. Re1+ {[%clk 0:01:58.1]} 17... Be6 {[%clk 0:01:58.7]}
18. Kh1 {[%clk 0:00:41]} 18... O-O {[%clk 0:01:38.6]} 19. Bd6 {[%clk 0:00:39.7]}
19... Rfe8 {[%clk 0:01:33.1]} 20. Bxc5 {[%clk 0:00:39.1]} 20... a6 {[%clk
0:01:33.3]} 21. Ba4 {[%clk 0:00:38.3]} 21... b5 {[%clk 0:01:32.6]} 22. Bb3
{[%clk 0:00:38.1]} 22... Rac8 {[%clk 0:01:25]} 23. Rff1 {[%clk 0:00:34.6]} 23...
Nd4 {[%clk 0:01:22.6]} 24. Bxd4 {[%clk 0:00:21.8]} 24... Bxd4 {[%clk 0:01:23.5]}
25. Ne2 {[%clk 0:00:21.7]} 25... Bxb2 {[%clk 0:01:11.3]} 26. Nf4 {[%clk
0:00:21.8]} 26... a5 {[%clk 0:01:04.3]} 27. Qf3 {[%clk 0:00:21.3]} 27... Rcd8
{[%clk 0:01:01]} 28. Bxd5 {[%clk 0:00:19]} 28... Bxd5 {[%clk 0:00:58.8]} 29.
Rxe8+ {[%clk 0:00:19.2]} 29... Qxe8 {[%clk 0:00:52.6]} 30. Nxd5 {[%clk
0:00:19.7]} 30... Rc8 {[%clk 0:00:39]} 31. Qd1 {[%clk 0:00:09.9]} 31... Kg7
{[%clk 0:00:37.6]} 32. c4 {[%clk 0:00:05.9]} 32... bxc4 {[%clk 0:00:35.4]} 33.
dxc4 {[%clk 0:00:06.8]} 33... Qe4 {[%clk 0:00:30.1]} 34. Qb3 {[%clk 0:00:06]}
34... Be5 {[%clk 0:00:25.1]} 35. h3 {[%clk 0:00:02.8]} 35... Qxc4 {[%clk
0:00:22.6]} 36. Qf3 {[%clk 0:00:03.3]} 36... Rf8 {[%clk 0:00:21.6]} 37. g4
{[%clk 0:00:03.2]} 37... Qxa2 {[%clk 0:00:20.7]} 38. Nf4 {[%clk 0:00:01.7]}
38... a4 {[%clk 0:00:19.9]} 39. h4 {[%clk 0:00:01.3]} 39... Qc4 {[%clk
0:00:19.5]} 40. h5 {[%clk 0:00:01.1]} 40... a3 {[%clk 0:00:15.3]} 0-1